Workbook

Sheet 1. 매수매도 총잔량
A3: =TODAY() -> 2023-12-01
A4: 시간 | B4: 매도총잔량 | C4: 매도건수 | D4: 매수총잔량 | E4: 매수건수 | F4: 순매수총잔량 | G4: 선물지수 | H4: 순매수건수 | I4: 평균계약수
A5: 45261.65694 | B5: =[1]!'101TC000.101' -> 8212 | C5: =[1]!'101TC000.103' -> 1236 | D5: =[1]!'101TC000.106' -> 4887 | E5: =[1]!'101TC000.108' -> 760 | F5: =D5-B5 -> -3325 | G5: =[1]!'101TC000.023' -> 335.5 | H5: =E5-C5 -> -476 | I5: =F5/H5 -> 6.985294118
B6: 건수당 계약수 | C6: =B5/C5 -> 6.644012945 | D6: 건수당 계약수 | E6: =D5/E5 -> 6.430263158 | F6: 건수당 순매수 계약수 | H6: =E6-C6 -> -0.2137497871
A8: 시간 | B8: 매도총잔량 | C8: 매도건수 | D8: 매수총잔량 | E8: 매수건수 | F8: 순매수총잔량 | G8: 선물지수 | H8: 순매수건수 | I8: 평균계약수
A9: 08:40:00 | B9: 15611 | C9: 1393 | D9: 16348 | E9: 1500 | F9: 737 | G9: 339.15 | H9: =(D9/E9)-(B9/C9) -> -0.3080813592 | I9: =(D9-B9)/(E9-C9) -> 6.887850467
A10: 08:41:00 | B10: 13749 | C10: 1348 | D10: 14380 | E10: 1431 | F10: 631 | G10: 339.15 | H10: -0.1506380548 | I10: 7.602409639
A11: 08:42:00 | B11: 13805 | C11: 1381 | D11: 14439 | E11: 1456 | F11: 634 | G11: 339.15 | H11: -0.0794838308 | I11: 8.453333333
A12: 08:43:00 | B12: 13707 | C12: 1401 | D12: 14535 | E12: 1494 | F12: 828 | G12: 339.15 | H12: -0.05481024741 | I12: 8.903225806
A13: 08:44:00 | B13: 12977 | C13: 1368 | D13: 13067 | E13: 1333 | F13: 90 | G13: 339.15 | H13: 0.3165895641 | I13: -2.571428571
A14: 08:45:00 | B14: 13823 | C14: 1532 | D14: 13728 | E14: 1536 | F14: -95 | G14: 339.15 | H14: -0.085345953 | I14: -23.75
A15: 08:46:00 | B15: 14527 | C15: 1736 | D15: 13705 | E15: 1594 | F15: -822 | G15: 337.6 | H15: 0.2297794437 | I15: 5.788732394
A16: 08:47:00 | B16: 14612 | C16: 1796 | D16: 14139 | E16: 1797 | F16: -473 | G16: 337.7 | H16: -0.2677439385 | I16: -473
A17: 08:48:00 | B17: 14626 | C17: 1811 | D17: 14551 | E17: 1994 | F17: -75 | G17: 337.75 | H17: -0.7788088174 | I17: -0.4098360656
A18: 08:49:00 | B18: 14803 | C18: 1921 | D18: 14663 | E18: 2053 | F18: -140 | G18: 337.75 | H18: -0.5636514713 | I18: -1.060606061
A19: 08:50:00 | B19: 14954 | C19: 1980 | D19: 14621 | E19: 2018 | F19: -333 | G19: 337.65 | H19: -0.3072328838 | I19: -8.763157895
A20: 08:51:00 | B20: 15205 | C20: 2052 | D20: 14808 | E20: 2087 | F20: -397 | G20: 337.55 | H20: -0.3144918744 | I20: -11.34285714
A21: 08:52:00 | B21: 14977 | C21: 1977 | D21: 15167 | E21: 2209 | F21: 190 | G21: 337.7 | H21: -0.7096169095 | I21: 0.8189655172
A22: 08:53:00 | B22: 14943 | C22: 1977 | D22: 15281 | E22: 2256 | F22: 338 | G22: 337.65 | H22: -0.7849289435 | I22: 1.211469534
A23: 08:54:00 | B23: 15300 | C23: 2124 | D23: 15035 | E23: 2188 | F23: -265 | G23: 337.5 | H23: -0.3318176184 | I23: -4.140625
A24: 08:55:00 | B24: 15494 | C24: 2190 | D24: 15082 | E24: 2169 | F24: -412 | G24: 337.4 | H24: -0.1214510822 | I24: 19.61904762
A25: 08:56:00 | B25: 15332 | C25: 2143 | D25: 15268 | E25: 2256 | F25: -64 | G25: 337.4 | H25: -0.3867258731 | I25: -0.5663716814
A26: 08:57:00 | B26: 15389 | C26: 2183 | D26: 15309 | E26: 2275 | F26: -80 | G26: 337.45 | H26: -0.3202424328 | I26: -0.8695652174
A27: 08:58:00 | B27: 15587 | C27: 2217 | D27: 15120 | E27: 2207 | F27: -467 | G27: 337.35 | H27: -0.1797432167 | I27: 46.7
A28: 08:59:00 | B28: 15590 | C28: 2213 | D28: 15142 | E28: 2247 | F28: -448 | G28: 337.4 | H28: -0.3059728581 | I28: -13.17647059
A29: 09:00:00 | B29: 15660 | C29: 2198 | D29: 15195 | E29: 2265 | F29: -465 | G29: 337.35 | H29: -0.4160495092 | I29: -6.940298507
A30: 09:01:00 | B30: 16478 | C30: 2403 | D30: 13751 | E30: 1883 | F30: -2727 | G30: 336.65 | H30: 0.4454466878 | I30: 5.244230769
A31: 09:02:00 | B31: 16605 | C31: 2428 | D31: 14243 | E31: 2031 | F31: -2362 | G31: 336.65 | H31: 0.1738394668 | I31: 5.949622166
A32: 09:03:00 | B32: 16967 | C32: 2543 | D32: 13865 | E32: 1909 | F32: -3102 | G32: 336.45 | H32: 0.5909240065 | I32: 4.892744479
A33: 09:04:00 | B33: 17680 | C33: 2687 | D33: 13100 | E33: 1716 | F33: -4580 | G33: 336.1 | H33: 1.054203829 | I33: 4.716786818
A34: 09:05:00 | B34: 17905 | C34: 2708 | D34: 13098 | E34: 1748 | F34: -4807 | G34: 336 | H34: 0.8812443172 | I34: 5.007291667
A35: 09:06:00 | B35: 17855 | C35: 2787 | D35: 13133 | E35: 1737 | F35: -4722 | G35: 336 | H35: 1.154206583 | I35: 4.497142857
A36: 09:07:00 | B36: 17630 | C36: 2712 | D36: 13129 | E36: 1789 | F36: -4501 | G36: 336 | H36: 0.8379992613 | I36: 4.876489707
A37: 09:08:00 | B37: 18432 | C37: 2991 | D37: 12086 | E37: 1531 | F37: -6346 | G37: 335.6 | H37: 1.731699344 | I37: 4.346575342
A38: 09:09:00 | B38: 18174 | C38: 2967 | D38: 11979 | E38: 1547 | F38: -6195 | G38: 335.5 | H38: 1.617995102 | I38: 4.362676056
A39: 09:10:00 | B39: 17471 | C39: 2799 | D39: 12679 | E39: 1810 | F39: -4792 | G39: 335.7 | H39: 0.7631002785 | I39: 4.845298281
A40: 09:11:00 | B40: 17386 | C40: 2754 | D40: 12948 | E40: 1938 | F40: -4438 | G40: 335.75 | H40: 0.3681152773 | I40: 5.43872549
A41: 09:12:00 | B41: 17886 | C41: 2936 | D41: 12575 | E41: 1756 | F41: -5311 | G41: 335.6 | H41: 1.069199878 | I41: 4.500847458
A42: 09:13:00 | B42: 17686 | C42: 2862 | D42: 13011 | E42: 1942 | F42: -4675 | G42: 335.75 | H42: 0.5201993377 | I42: 5.081521739
A43: 09:14:00 | B43: 18209 | C43: 3025 | D43: 12582 | E43: 1807 | F43: -5627 | G43: 335.5 | H43: 0.9434178379 | I43: 4.619868637
A44: 09:15:00 | B44: 18162 | C44: 3034 | D44: 12964 | E44: 1888 | F44: -5198 | G44: 335.55 | H44: 0.8803685351 | I44: 4.535776614
A45: 09:16:00 | B45: 18807 | C45: 3235 | D45: 12270 | E45: 1660 | F45: -6537 | G45: 335.25 | H45: 1.577965029 | I45: 4.15047619
A46: 09:17:00 | B46: 18078 | C46: 2965 | D46: 12875 | E46: 1870 | F46: -5203 | G46: 335.5 | H46: 0.7878935171 | I46: 4.751598174
A47: 09:18:00 | B47: 18541 | C47: 3103 | D47: 12547 | E47: 1763 | F47: -5994 | G47: 335.35 | H47: 1.14166098 | I47: 4.473134328
A48: 09:19:00 | B48: 18429 | C48: 3060 | D48: 12880 | E48: 1881 | F48: -5549 | G48: 335.45 | H48: 0.8248725647 | I48: 4.706530958
A49: 09:20:00 | B49: 18662 | C49: 3137 | D49: 12622 | E49: 1819 | F49: -6040 | G49: 335.35 | H49: 0.9899816042 | I49: 4.582701062
A50: 09:21:00 | B50: 18629 | C50: 3098 | D50: 13021 | E50: 1935 | F50: -5608 | G50: 335.4 | H50: 0.7159646217 | I50: 4.822012038
A51: 09:22:00 | B51: 19202 | C51: 3285 | D51: 12413 | E51: 1747 | F51: -6789 | G51: 335.25 | H51: 1.259965725 | I51: =(D51-B51)/(E51-C51) -> 4.414174252
A52: 09:23:00 | B52: 18749 | C52: 3126 | D52: 12932 | E52: 1922 | F52: -5817 | G52: 335.4 | H52: 0.7306471919 | I52: 4.831395349
A53: 09:24:00 | B53: 18399 | C53: 3009 | D53: 13405 | E53: 2121 | F53: -4994 | G53: 335.55 | H53: 0.2054759813 | I53: 5.623873874
A54: 09:25:00 | B54: 18712 | C54: 3168 | D54: 13089 | E54: 2023 | F54: -5623 | G54: 335.4 | H54: 0.5635282634 | I54: 4.910917031
A55: 09:26:00 | B55: 19015 | C55: 3259 | D55: 12783 | E55: 1929 | F55: -6232 | G55: 335.3 | H55: 0.7921377671 | I55: 4.685714286
A56: 09:27:00 | B56: 19888 | C56: 3441 | D56: 11866 | E56: 1607 | F56: -8022 | G56: 335 | H56: 1.604230041 | I56: 4.374045802
A57: 09:28:00 | B57: 20088 | C57: 3485 | D57: 11612 | E57: 1592 | F57: -8476 | G57: 334.9 | H57: 1.529837855 | I57: 4.477548864
A58: 09:29:00 | B58: 19537 | C58: 3309 | D58: 12038 | E58: 1724 | F58: -7499 | G58: 335.05 | H58: 1.078397943 | I58: 4.731230284
A59: 09:30:00 | B59: 20083 | C59: 3462 | D59: 11274 | E59: 1543 | F59: -8809 | G59: 334.75 | H59: 1.505563599 | I59: 4.590411673
A60: 09:31:00 | B60: 20234 | C60: 3454 | D60: 11404 | E60: 1637 | F60: -8830 | G60: 334.8 | H60: 1.10826646 | I60: 4.859658778
A61: 09:32:00 | B61: 19112 | C61: 3152 | D61: 12405 | E61: 1968 | F61: -6707 | G61: 335.2 | H61: 0.2399018819 | I61: 5.664695946
A62: 09:33:00 | B62: 19507 | C62: 3306 | D62: 12228 | E62: 1900 | F62: -7279 | G62: 335.05 | H62: 0.5353055051 | I62: 5.177098151
A63: 09:34:00 | B63: 19709 | C63: 3354 | D63: 12047 | E63: 1847 | F63: -7662 | G63: 334.95 | H63: 0.6462017247 | I63: 5.084273391
A64: 09:35:00 | B64: 19823 | C64: 3404 | D64: 12150 | E64: 1876 | F64: -7673 | G64: 335 | H64: 0.653102834 | I64: 5.021596859
A65: 09:36:00 | B65: 20404 | C65: 3543 | D65: 11703 | E65: 1760 | F65: -8701 | G65: 334.8 | H65: 0.890470486 | I65: 4.879977566
A66: 09:37:00 | B66: 20318 | C66: 3512 | D66: 11904 | E66: 1834 | F66: -8414 | G66: 334.85 | H66: 0.7054231263 | I66: 5.014302741
A67: 09:38:00 | B67: 19735 | C67: 3339 | D67: 12579 | E67: 2056 | F67: -7156 | G67: 335.1 | H67: 0.2077384303 | I67: 5.577552611
A68: 09:39:00 | B68: 19788 | C68: 3353 | D68: 12609 | E68: 2072 | F68: -7179 | G68: 335.1 | H68: 0.1838440364 | I68: 5.604215457
A69: 09:40:00 | B69: 19143 | C69: 3178 | D69: 13096 | E69: 2208 | F69: -6047 | G69: 335.25 | H69: -0.09244032798 | I69: 6.234020619
A70: 09:41:00 | B70: 18883 | C70: 3110 | D70: 13303 | E70: 2278 | F70: -5580 | G70: 335.3 | H70: -0.2319324505 | I70: 6.706730769
A71: 09:42:00 | B71: 19189 | C71: 3231 | D71: 12946 | E71: 2181 | F71: -6243 | G71: 335.2 | H71: -0.003218902848 | I71: 5.945714286
A72: 09:43:00 | B72: 19292 | C72: 3266 | D72: 12994 | E72: 2220 | F72: -6298 | G72: 335.2 | H72: -0.05376662639 | I72: 6.021032505
A73: 09:44:00 | B73: 19720 | C73: 3419 | D73: 12667 | E73: 2078 | F73: -7053 | G73: 335.05 | H73: =(D73/E73)-(B73/C73) -> 0.3279968055 | I73: =(D73-B73)/(E73-C73) -> 5.25950783
A74: 09:45:00 | B74: 19332 | C74: 3274 | D74: 13051 | E74: 2216 | F74: -6281 | G74: 335.2 | H74: -0.01526329312 | I74: 5.936672968
A75: 09:46:00 | B75: 19535 | C75: 3340 | D75: 12973 | E75: 2169 | F75: -6562 | G75: 335.15 | H75: 0.1322948846 | I75: 5.603757472
A76: 09:47:00 | B76: 19503 | C76: 3300 | D76: 13107 | E76: 2266 | F76: -6396 | G76: 335.2 | H76: -0.1257987643 | I76: 6.185686654
A77: 09:48:00 | B77: 18897 | C77: 3132 | D77: 13518 | E77: 2360 | F77: -5379 | G77: 335.35 | H77: -0.3055588025 | I77: 6.96761658
A78: 09:49:00 | B78: 18662 | C78: 3026 | D78: 13910 | E78: 2443 | F78: -4752 | G78: 335.5 | H78: -0.4733983739 | I78: 8.150943396
A79: 09:50:00 | B79: 18353 | C79: 2971 | D79: 14094 | E79: 2535 | F79: -4259 | G79: 335.55 | H79: -0.6176180395 | I79: 9.768348624
A80: 09:51:00 | B80: 18662 | C80: 3118 | D80: 13895 | E80: 2442 | F80: -4767 | G80: 335.45 | H80: -0.2952387632 | I80: 7.051775148
A81: 09:52:00 | B81: 18322 | C81: 2982 | D81: 14158 | E81: 2513 | F81: -4164 | G81: 335.55 | H81: -0.5102948237 | I81: 8.878464819
A82: 09:53:00 | B82: 18826 | C82: 3176 | D82: 13613 | E82: 2342 | F82: -5213 | G82: 335.35 | H82: -0.1150284908 | I82: 6.25059952
A83: 09:54:00 | B83: 19320 | C83: 3327 | D83: 13025 | E83: 2173 | F83: -6295 | G83: 335.15 | H83: 0.186984124 | I83: 5.454939341
A84: 09:55:00 | B84: 19077 | C84: 3263 | D84: 13263 | E84: 2259 | F84: -5814 | G84: 335.3 | H84: 0.02472162632 | I84: 5.790836653
A85: 09:56:00 | B85: 19167 | C85: 3321 | D85: 13003 | E85: 2175 | F85: -6164 | G85: 335.15 | H85: 0.2069364234 | I85: 5.378708551
A86: 09:57:00 | B86: 18671 | C86: 3155 | D86: 13517 | E86: 2368 | F86: -5154 | G86: 335.4 | H86: -0.2097155148 | I86: 6.548919949
A87: 09:58:00 | B87: 19036 | C87: 3232 | D87: 13450 | E87: 2332 | F87: -5586 | G87: 335.35 | H87: -0.12227001 | I87: =(D87-B87)/(E87-C87) -> 6.206666667
A88: 09:59:00 | B88: 19058 | C88: 3266 | D88: 13434 | E88: 2314 | F88: -5624 | G88: 335.3 | H88: -0.02974095749 | I88: 5.907563025
A89: 10:00:00 | B89: 19249 | C89: 3334 | D89: 13394 | E89: 2305 | F89: -5855 | G89: 335.25 | H89: 0.03730069604 | I89: 5.689990282
A90: 10:01:00 | B90: 18457 | C90: 3048 | D90: 14284 | E90: 2530 | F90: -4173 | G90: 335.5 | H90: -0.4095963919 | I90: =(D90-B90)/(E90-C90) -> 8.055984556
A91: 10:02:00 | B91: 18307 | C91: 2982 | D91: 14352 | E91: 2579 | F91: -3955 | G91: 335.6 | H91: -0.5742206893 | I91: 9.813895782
A92: 10:03:00 | B92: 17676 | C92: 2876 | D92: 14750 | E92: 2701 | F92: -2926 | G92: 335.7 | H92: -0.6850957689 | I92: 16.72
A93: 10:04:00 | B93: 18129 | C93: 2999 | D93: 14551 | E93: 2642 | F93: -3578 | G93: 335.65 | H93: -0.5374449823 | I93: 10.02240896
A94: 10:05:00 | B94: 18423 | C94: 3098 | D94: 14234 | E94: 2548 | F94: -4189 | G94: 335.55 | H94: -0.360397603 | I94: 7.616363636
A95: 10:06:00 | B95: 18935 | C95: 3269 | D95: 13699 | E95: 2349 | F95: -5236 | G95: 335.35 | H95: 0.03955211703 | I95: 5.691304348
A96: 10:07:00 | B96: 18644 | C96: 3168 | D96: 14020 | E96: 2451 | F96: -4624 | G96: 335.5 | H96: -0.164986771 | I96: 6.449093445
A97: 10:08:00 | B97: 18132 | C97: 2988 | D97: 14622 | E97: 2627 | F97: -3510 | G97: 335.7 | H97: -0.5022281742 | I97: =(D97-B97)/(E97-C97) -> 9.72299169
A98: 10:09:00 | B98: 18128 | C98: 3040 | D98: 14583 | E98: 2623 | F98: -3545 | G98: 335.7 | H98: -0.4034933884 | I98: 8.501199041
A99: 10:10:00 | B99: 18160 | C99: 3042 | D99: 14607 | E99: 2631 | F99: -3553 | G99: 335.7 | H99: -0.4178753251 | I99: 8.644768856
A100: 10:11:00 | B100: 18026 | C100: 2993 | D100: 14810 | E100: 2683 | F100: -3216 | G100: 335.7 | H100: -0.502779314 | I100: 10.37419355
A101: 10:12:00 | B101: 17835 | C101: 2978 | D101: 14923 | E101: 2720 | F101: -2912 | G101: 335.8 | H101: -0.5025216786 | I101: 11.28682171
A102: 10:13:00 | B102: 17939 | C102: 3033 | D102: 14932 | E102: 2697 | F102: -3007 | G102: 335.75 | H102: -0.3780839391 | I102: 8.949404762
A103: 10:14:00 | B103: 18075 | C103: 3078 | D103: 14794 | E103: 2652 | F103: -3281 | G103: 335.7 | H103: -0.2938883156 | I103: 7.701877934
A104: 10:15:00 | B104: 18199 | C104: 3148 | D104: 14677 | E104: 2622 | F104: -3522 | G104: 335.7 | H104: -0.1834954839 | I104: 6.69581749
A105: 10:16:00 | B105: 18748 | C105: 3361 | D105: 13998 | E105: 2416 | F105: -4750 | G105: 335.45 | H105: 0.2157724168 | I105: 5.026455026
A106: 10:17:00 | B106: 18844 | C106: 3386 | D106: 13804 | E106: 2385 | F106: -5040 | G106: 335.4 | H106: 0.2225719172 | I106: 5.034965035
A107: 10:18:00 | B107: 18801 | C107: 3382 | D107: 13870 | E107: 2415 | F107: -4931 | G107: 335.45 | H107: 0.184134616 | I107: 5.099276112
A108: 10:19:00 | B108: 19037 | C108: 3382 | D108: 13640 | E108: 2354 | F108: -5397 | G108: 335.4 | H108: 0.1654747232 | I108: 5.25
A109: 10:20:00 | B109: 18570 | C109: 3201 | D109: 13920 | E109: 2388 | F109: -4650 | G109: 335.5 | H109: 0.02783363867 | I109: 5.719557196
A110: 10:21:00 | B110: 18799 | C110: 3264 | D110: 13791 | E110: 2363 | F110: -5008 | G110: 335.45 | H110: 0.07672758852 | I110: 5.55826859
A111: 10:22:00 | B111: 19410 | C111: 3463 | D111: 13081 | E111: 2140 | F111: -6329 | G111: 335.15 | H111: 0.5076500306 | I111: 4.783824641
A112: 10:23:00 | B112: 18799 | C112: 3249 | D112: 13824 | E112: 2322 | F112: -4975 | G112: 335.35 | H112: 0.167400345 | I112: 5.366774542
A113: 10:24:00 | B113: 18268 | C113: 3060 | D113: 14284 | E113: 2487 | F113: -3984 | G113: 335.55 | H113: -0.2264686172 | I113: 6.952879581
A114: 10:25:00 | B114: 18542 | C114: 3170 | D114: 14073 | E114: 2425 | F114: -4469 | G114: 335.5 | H114: -0.04591238739 | I114: 5.998657718
A115: 10:26:00 | B115: 19128 | C115: 3357 | D115: 13442 | E115: 2253 | F115: -5686 | G115: 335.3 | H115: 0.2683226059 | I115: 5.150362319
A116: 10:27:00 | B116: 18855 | C116: 3263 | D116: 13680 | E116: 2333 | F116: -5175 | G116: 335.35 | H116: 0.08527005106 | I116: 5.564516129
A117: 10:28:00 | B117: 18781 | C117: 3265 | D117: 13698 | E117: 2355 | F117: -5083 | G117: 335.4 | H117: 0.06433998888 | I117: 5.585714286
A118: 10:29:00 | B118: 18980 | C118: 3347 | D118: 13528 | E118: 2306 | F118: -5452 | G118: 335.35 | H118: 0.1956854606 | I118: 5.237271854
A119: 10:30:00 | B119: 19246 | C119: 3433 | D119: 13285 | E119: 2236 | F119: -5961 | G119: 335.25 | H119: 0.3352378811 | I119: 4.979949875
A120: 10:31:00 | B120: 19090 | C120: 3367 | D120: 13436 | E120: 2278 | F120: -5654 | G120: 335.3 | H120: 0.2284206077 | I120: 5.191919192
A121: 10:32:00 | B121: 19076 | C121: 3354 | D121: 13570 | E121: 2336 | F121: -5506 | G121: 335.3 | H121: 0.1215380735 | I121: 5.408644401
A122: 10:33:00 | B122: 18446 | C122: 3132 | D122: 14053 | E122: 2486 | F122: -4393 | G122: 335.5 | H122: -0.2366714649 | I122: 6.800309598
A123: 10:34:00 | B123: 18167 | C123: 3006 | D123: 14345 | E123: 2565 | F123: -3822 | G123: 335.6 | H123: -0.4509869151 | I123: 8.666666667
A124: 10:35:00 | B124: 18143 | C124: 3004 | D124: 14349 | E124: 2588 | F124: -3794 | G124: 335.65 | H124: -0.4951779904 | I124: 9.120192308
A125: 10:36:00 | B125: 17796 | C125: 2854 | D125: 14613 | E125: 2675 | F125: -3183 | G125: 335.7 | H125: -0.7726552666 | I125: 17.78212291
A126: 10:37:00 | B126: 17602 | C126: 2790 | D126: 14756 | E126: 2706 | F126: -2846 | G126: 335.8 | H126: -0.8558933155 | I126: 33.88095238
A127: 10:38:00 | B127: 17099 | C127: 2657 | D127: 15006 | E127: 2796 | F127: -2093 | G127: 336 | H127: -1.068500729 | I127: -15.05755396
A128: 10:39:00 | B128: 17311 | C128: 2768 | D128: 14756 | E128: 2688 | F128: -2555 | G128: 335.95 | H128: -0.7643906551 | I128: 31.9375
A129: 10:40:00 | B129: 17180 | C129: 2666 | D129: 14953 | E129: 2747 | F129: -2227 | G129: 336.1 | H129: -1.000718236 | I129: -27.49382716
A130: 10:41:00 | B130: 17180 | C130: 2738 | D130: 14936 | E130: 2725 | F130: -2244 | G130: 336.1 | H130: -0.793552114 | I130: =(D130-B130)/(E130-C130) -> 172.6153846
A131: 10:42:00 | B131: 17321 | C131: 2686 | D131: 14863 | E131: 2667 | F131: -2458 | G131: 336.15 | H131: =(D131/E131)-(B131/C131) -> -0.875694103 | I131: =(D131-B131)/(E131-C131) -> 129.3684211
A132: 10:43:00 | B132: 17648 | C132: 2810 | D132: 14673 | E132: 2609 | F132: -2975 | G132: 336.05 | H132: -0.6564331789 | I132: 14.80099502
A133: 10:44:00 | B133: 17492 | C133: 2750 | D133: 14441 | E133: 2536 | F133: -3051 | G133: 336.1 | H133: -0.6663266418 | I133: 14.25700935
A134: 10:45:00 | B134: 17931 | C134: 2886 | D134: 14107 | E134: 2420 | F134: -3824 | G134: 335.9 | H134: =(D134/E134)-(B134/C134) -> -0.3837588701 | I134: =(D134-B134)/(E134-C134) -> 8.206008584
A135: 10:46:00 | B135: 15995 | C135: 2197 | D135: 15560 | E135: 2767 | F135: -435 | G135: 336.65 | H135: =(D135/E135)-(B135/C135) -> -1.656963474 | I135: =(D135-B135)/(E135-C135) -> -0.7631578947
A136: 10:47:00 | B136: 15892 | C136: 2423 | D136: 15560 | E136: 2679 | F136: -332 | G136: 336.65 | H136: -0.7506740261 | I136: -1.296875
A137: 10:48:00 | B137: 16885 | C137: 2519 | D137: 14917 | E137: 2591 | F137: -1968 | G137: 336.5 | H137: -0.9458201804 | I137: -27.33333333
A138: 10:49:00 | B138: 16708 | C138: 2504 | D138: 15306 | E138: 2677 | F138: -1402 | G138: 336.5 | H138: -0.9549296397 | I138: -8.104046243
A139: 10:50:00 | B139: 17112 | C139: 2604 | D139: 14854 | E139: 2580 | F139: -2258 | G139: 336.45 | H139: -0.8140642303 | I139: 94.08333333
A140: 10:51:00 | B140: 16526 | C140: 2436 | D140: 15634 | E140: 2762 | F140: -892 | G140: 336.65 | H140: -1.123681229 | I140: -2.736196319
A141: 10:52:00 | B141: 17033 | C141: 2548 | D141: 15390 | E141: 2702 | F141: -1643 | G141: 336.55 | H141: -0.9890699604 | I141: -10.66883117
A142: 10:53:00 | B142: 17436 | C142: 2661 | D142: 14959 | E142: 2614 | F142: -2477 | G142: 336.45 | H142: -0.8297766169 | I142: 52.70212766
A143: 10:54:00 | B143: 17626 | C143: 2719 | D143: 14812 | E143: 2571 | F143: -2814 | G143: 336.35 | H143: -0.7213479227 | I143: 19.01351351
A144: 10:55:00 | B144: 17901 | C144: 2751 | D144: 14555 | E144: 2527 | F144: -3346 | G144: 336.3 | H144: -0.7472941091 | I144: 14.9375
A145: 10:56:00 | B145: 18161 | C145: 2857 | D145: 14375 | E145: 2467 | F145: -3786 | G145: 336.2 | H145: -0.5297525517 | I145: 9.707692308
A146: 10:57:00 | B146: 18007 | C146: 2821 | D146: 14410 | E146: 2495 | F146: -3597 | G146: 336.2 | H146: -0.6076463455 | I146: 11.03374233
A147: 10:58:00 | B147: 17472 | C147: 2698 | D147: 15070 | E147: 2655 | F147: -2402 | G147: 336.35 | H147: -0.7998252175 | I147: 55.86046512
A148: 10:59:00 | B148: 17186 | C148: 2620 | D148: 15365 | E148: 2716 | F148: -1821 | G148: 336.5 | H148: -0.9023254899 | I148: -18.96875
A149: 11:00:00 | B149: 17927 | C149: 2833 | D149: 14813 | E149: 2532 | F149: -3114 | G149: 336.2 | H149: -0.4776049761 | I149: 10.34551495
A150: 11:01:00 | B150: 18214 | C150: 2930 | D150: 14690 | E150: 2449 | F150: -3524 | G150: 336.1 | H150: -0.2180155723 | I150: 7.326403326
A151: 11:02:00 | B151: 18059 | C151: 2880 | D151: 14919 | E151: 2518 | F151: -3140 | G151: 336.2 | H151: -0.3455456822 | I151: 8.674033149
A152: 11:03:00 | B152: 17509 | C152: 2729 | D152: 15521 | E152: 2685 | F152: -1988 | G152: 336.4 | H152: -0.6352701142 | I152: 45.18181818
A153: 11:04:00 | B153: 17358 | C153: 2683 | D153: 15758 | E153: 2717 | F153: -1600 | G153: 336.4 | H153: -0.6698443875 | I153: -47.05882353
A154: 11:05:00 | B154: 17217 | C154: 2653 | D154: 15800 | E154: 2728 | F154: -1417 | G154: 336.45 | H154: -0.6978455199 | I154: -18.89333333
A155: 11:06:00 | B155: 17183 | C155: 2639 | D155: 15988 | E155: 2765 | F155: -1195 | G155: 336.45 | H155: -0.7288999957 | I155: -9.484126984
A156: 11:07:00 | B156: 17778 | C156: 2796 | D156: 15342 | E156: 2600 | F156: -2436 | G156: 336.25 | H156: -0.4575998679 | I156: 12.42857143
A157: 11:08:00 | B157: 18363 | C157: 2947 | D157: 14795 | E157: 2465 | F157: -3568 | G157: 336.1 | H157: -0.2290540592 | I157: 7.402489627
A158: 11:09:00 | B158: 18377 | C158: 2967 | D158: 14886 | E158: 2489 | F158: -3491 | G158: 336.1 | H158: -0.213083303 | I158: 7.30334728
A159: 11:10:00 | B159: 18786 | C159: 3088 | D159: 14461 | E159: 2375 | F159: -4325 | G159: 336 | H159: 0.005292882465 | I159: 6.065918654
A160: 11:11:00 | B160: 18695 | C160: 3052 | D160: 14291 | E160: 2323 | F160: -4404 | G160: 335.9 | H160: 0.02646719313 | I160: 6.041152263
A161: 11:12:00 | B161: 18024 | C161: 2887 | D161: 15037 | E161: 2526 | F161: -2987 | G161: 336.1 | H161: -0.290269044 | I161: 8.274238227
A162: 11:13:00 | B162: 18764 | C162: 3054 | D162: 14263 | E162: 2332 | F162: -4501 | G162: 335.9 | H162: -0.027864084 | I162: 6.234072022
A163: 11:14:00 | B163: 19058 | C163: 3149 | D163: 14095 | E163: 2262 | F163: -4963 | G163: 335.8 | H163: 0.179131292 | I163: 5.595264938
A164: 11:15:00 | B164: 19042 | C164: 3088 | D164: 13939 | E164: 2227 | F164: -5103 | G164: 335.75 | H164: 0.09264217296 | I164: 5.926829268
A165: 11:16:00 | B165: 18957 | C165: 3078 | D165: 14135 | E165: 2285 | F165: -4822 | G165: 335.8 | H165: 0.02712622792 | I165: 6.080706179
A166: 11:17:00 | B166: 18830 | C166: 3041 | D166: 14317 | E166: 2338 | F166: -4513 | G166: 335.85 | H166: -0.06843216841 | I166: 6.419630156
A167: 11:18:00 | B167: 18979 | C167: 3100 | D167: 14216 | E167: 2314 | F167: -4763 | G167: 335.8 | H167: 0.02121643851 | I167: 6.059796438
A168: 11:19:00 | B168: 18926 | C168: 3048 | D168: 14298 | E168: 2332 | F168: -4628 | G168: 335.8 | H168: -0.07809974654 | I168: 6.463687151
A169: 11:20:00 | B169: 18768 | C169: 3006 | D169: 14462 | E169: 2370 | F169: -4306 | G169: 335.85 | H169: -0.1414032694 | I169: 6.770440252
A170: 11:21:00 | B170: 18207 | C170: 2840 | D170: 14980 | E170: 2530 | F170: -3227 | G170: 336.05 | H170: -0.4899668764 | I170: 10.40967742
A171: 11:22:00 | B171: 18487 | C171: 2925 | D171: 14729 | E171: 2438 | F171: -3758 | G171: 335.95 | H171: -0.2789144808 | I171: 7.716632444
A172: 11:23:00 | B172: 19339 | C172: 3136 | D172: 13785 | E172: 2213 | F172: -5554 | G172: 335.7 | H172: 0.062327809 | I172: 6.017334778
A173: 11:24:00 | B173: 19673 | C173: 3221 | D173: 13571 | E173: 2171 | F173: -6102 | G173: 335.65 | H173: 0.1433058703 | I173: 5.811428571
A174: 11:25:00 | B174: 19332 | C174: 3144 | D174: 13823 | E174: 2253 | F174: -5509 | G174: 335.7 | H174: -0.01347990635 | I174: 6.182940516
A175: 11:26:00 | B175: 19688 | C175: 3236 | D175: 13582 | E175: 2181 | F175: -6106 | G175: 335.6 | H175: 0.1433642272 | I175: 5.787677725
A176: 11:27:00 | B176: 19734 | C176: 3253 | D176: 13568 | E176: 2191 | F176: -6166 | G176: 335.6 | H176: 0.12620587 | I176: 5.806026365
A177: 11:28:00 | B177: 20067 | C177: 3343 | D177: 13206 | E177: 2057 | F177: -6861 | G177: 335.5 | H177: 0.4173369761 | I177: 5.335147745
A178: 11:29:00 | B178: 19845 | C178: 3297 | D178: 13296 | E178: 2110 | F178: -6549 | G178: 335.5 | H178: 0.2823135207 | I178: 5.51727043
A179: 11:30:00 | B179: 19567 | C179: 3216 | D179: 13629 | E179: 2200 | F179: -5938 | G179: 335.55 | H179: 0.1107338308 | I179: 5.844488189
A180: 11:31:00 | B180: 19247 | C180: 3133 | D180: 13929 | E180: 2267 | F180: -5318 | G180: 335.65 | H180: 0.000930375187 | I180: 6.140877598
A181: 11:32:00 | B181: 18536 | C181: 2922 | D181: 14666 | E181: 2443 | F181: -3870 | G181: 335.85 | H181: -0.3403256115 | I181: 8.079331942
A182: 11:33:00 | B182: 18296 | C182: 2862 | D182: 14884 | E182: 2519 | F182: -3412 | G182: 336 | H182: -0.4840384288 | I182: 9.947521866
A183: 11:34:00 | B183: 17894 | C183: 2764 | D183: 15402 | E183: 2637 | F183: -2492 | G183: 336.1 | H183: -0.6332226958 | I183: 19.62204724
A184: 11:35:00 | B184: 17961 | C184: 2782 | D184: 15368 | E184: 2651 | F184: -2593 | G184: 336.15 | H184: -0.659088943 | I184: 19.79389313
A185: 11:36:00 | B185: 17947 | C185: 2791 | D185: 15431 | E185: 2636 | F185: -2516 | G185: 336.15 | H185: -0.5763663445 | I185: 16.23225806
A186: 11:37:00 | B186: 18359 | C186: 2884 | D186: 15110 | E186: 2586 | F186: -3249 | G186: 336.05 | H186: -0.5228105997 | I186: 10.90268456
A187: 11:38:00 | B187: 18505 | C187: 2904 | D187: 14933 | E187: 2550 | F187: -3572 | G187: 336.05 | H187: -0.5161667477 | I187: 10.09039548
A188: 11:39:00 | B188: 18619 | C188: 2948 | D188: 14885 | E188: 2563 | F188: -3734 | G188: 336 | H188: -0.5081600387 | I188: 9.698701299
A189: 11:40:00 | B189: 18419 | C189: 2875 | D189: 15195 | E189: 2607 | F189: -3224 | G189: 336.1 | H189: -0.5780701456 | I189: 12.02985075
A190: 11:41:00 | B190: 18576 | C190: 2928 | D190: 15074 | E190: 2574 | F190: -3502 | G190: 336.05 | H190: -0.4880074388 | I190: 9.892655367
A191: 11:42:00 | B191: 18538 | C191: 2908 | D191: 15163 | E191: 2596 | F191: -3375 | G191: 336.05 | H191: -0.5339189696 | I191: 10.81730769
A192: 11:43:00 | B192: 17582 | C192: 2714 | D192: 15592 | E192: 2767 | F192: -1990 | G192: 336.3 | H192: -0.8432771327 | I192: -37.54716981
A193: 11:44:00 | B193: 17419 | C193: 2679 | D193: 15751 | E193: 2796 | F193: -1668 | G193: 336.35 | H193: -0.8686481408 | I193: -14.25641026
A194: 11:45:00 | B194: 17236 | C194: 2593 | D194: 15920 | E194: 2813 | F194: -1316 | G194: 336.35 | H194: -0.987688558 | I194: -5.981818182
A195: 11:46:00 | B195: 17828 | C195: 2716 | D195: 15488 | E195: 2678 | F195: -2340 | G195: 336.2 | H195: -0.7806443381 | I195: 61.57894737
A196: 11:47:00 | B196: 17840 | C196: 2722 | D196: 15554 | E196: 2684 | F196: -2286 | G196: 336.2 | H196: -0.7589224413 | I196: 60.15789474
A197: 11:48:00 | B197: 17353 | C197: 2602 | D197: 16010 | E197: 2817 | F197: -1343 | G197: 336.35 | H197: -0.9857496091 | I197: -6.246511628
A198: 11:49:00 | B198: 17706 | C198: 2716 | D198: 15684 | E198: 2731 | F198: -2022 | G198: 336.3 | H198: -0.7761945028 | I198: -134.8
A199: 11:50:00 | B199: 17913 | C199: 2787 | D199: 15402 | E199: 2655 | F199: -2511 | G199: 336.2 | H199: =(D199/E199)-(B199/C199) -> -0.6262112836 | I199: =(D199-B199)/(E199-C199) -> 19.02272727
A200: 11:51:00 | B200: 17793 | C200: 2761 | D200: 15492 | E200: 2689 | F200: -2301 | G200: 336.25 | H200: -0.6831546662 | I200: 31.95833333
A201: 11:52:00 | B201: 18022 | C201: 2811 | D201: 15355 | E201: 2647 | F201: -2667 | G201: 336.15 | H201: -0.6103348642 | I201: 16.26219512
A202: 11:53:00 | B202: 18062 | C202: 2795 | D202: 15369 | E202: 2646 | F202: -2693 | G202: 336.2 | H202: -0.6538640024 | I202: 18.0738255
A203: 11:54:00 | B203: 18278 | C203: 2875 | D203: 15132 | E203: 2569 | F203: -3146 | G203: 336.1 | H203: -0.467335556 | I203: 10.28104575
... 232 more rows

Sheet 2. 순매수에 따른 익일가격 (hidden)
I1: 15:35:00 | T1: 15:45:00 | AB1: 발생횟수 | AC1: 성공횟수 | AD1: 확률
B2: 날짜 | C2: 시간 | D2: 매도총잔량 | E2: 매도건수 | F2: 매수총잔량 | G2: 매수건수 | H2: 순매수총잔량 | I2: 선물지수 | J2: 순매수건수 | K2: 평균계약수 | M2: 날짜 | N2: 시간 | O2: 매도총잔량 | P2: 매도건수 | Q2: 매수총잔량 | R2: 매수건수 | S2: 순매수총잔량 | T2: 선물지수 | U2: 순매수건수 | V2: 평균계약수 | W2: 종가 | Y2: 순매수총잔량 | Z2: 시작가 | AA2: 일치여부 | AB2: =COUNTA(AA4:AA1000) -> 38 | AC2: =COUNTIF(AA4:AA1000,"성공") -> 21 | AD2: =AC2/AB2 -> 0.5526315789
B3: 2023-10-12 | C3: 15:35:00 | D3: 9508 | E3: 1216 | F3: 15618 | G3: 2033 | H3: 6110 | I3: 330.4 | J3: -0.1368359567 | K3: 7.478580171 | M3: 2023-10-12 | N3: 15:46:00 | O3: 10474 | P3: 1101 | Q3: 13874 | R3: 1542 | S3: 3400 | T3: 330.45 | U3: -0.5157638793 | V3: 7.709750567 | W3: =T3 -> 330.45 | Y3: =IF(H3>S3,"하락","상승") -> 하락 | AB3: 순매수총잔량 증감율
A4: 금 | B4: 2023-10-13 | C4: 15:35:00 | D4: 14867 | E4: 1854 | F4: 13866 | G4: 1712 | H4: -1001 | I4: 327.45 | J4: 0.08042096402 | K4: 7.049295775 | M4: 2023-10-13 | N4: 15:46:00 | O4: 11298 | P4: 1240 | Q4: 11489 | R4: 1268 | S4: 191 | T4: 327.85 | U4: -0.05056477053 | V4: 6.821428571 | W4: 327.85 | Y4: 상승 | Z4: 327.45 | AA4: =IF(AND(Y3="상승",Z4>W3),"성공",IF(AND(Y3="하락",Z4<W3),"성공",IF(AND(Y3="상승",Z4=W3),"동일가",IF(AND(Y3="하락",Z4=W3),"동일가","실패")))) -> 성공 | AB4: =S4/H4-1 -> -1.190809191
B5: 2023-10-16 | C5: 15:35:00 | D5: 15940 | E5: 1970 | F5: 11709 | G5: 1602 | H5: -4231 | I5: 325.05 | J5: -0.7823817943 | K5: 11.49728261 | M5: 2023-10-16 | N5: 15:46:00 | O5: 7849 | P5: 1022 | Q5: 5360 | R5: 774 | S5: -2489 | T5: 324.85 | U5: -0.7549745395 | V5: 10.03629032 | W5: 324.85 | Y5: =IF(H5>S5,"하락","상승") -> 상승 | Z5: 326.2 | AA5: 실패 | AB5: -0.4117229969
B6: 2023-10-17 | C6: 15:35:00 | D6: 13240 | E6: 1889 | F6: 17947 | G6: 2371 | H6: 4707 | I6: 328.7 | J6: 0.5603805378 | K6: 9.765560166 | M6: 2023-10-17 | N6: 15:46:00 | O6: 4526 | P6: 1045 | Q6: 8044 | R6: 1103 | S6: 3518 | T6: 328.8 | U6: 2.961737237 | V6: 60.65517241 | W6: 328.8 | Y6: 하락 | Z6: 327.15 | AA6: 성공 | AB6: -0.2526025069
B7: 2023-10-18 | C7: 15:35:00 | D7: 12859 | E7: 1924 | F7: 19132 | G7: 2629 | H7: 6273 | I7: 330.15 | J7: 0.5938198124 | K7: 8.89787234 | M7: 2023-10-18 | N7: 15:46:00 | O7: 5359 | P7: 994 | Q7: 9271 | R7: 1403 | S7: 3912 | T7: 330.2 | U7: 1.216634805 | V7: 9.564792176 | W7: 330.2 | Y7: 하락 | Z7: 327.95 | AA7: 성공 | AB7: -0.3763749402
B8: 2023-10-19 | C8: 15:35:00 | D8: 21327 | E8: 2960 | F8: 9834 | G8: 1197 | H8: -11493 | I8: 323.7 | J8: 1.01047128 | K8: 6.519001702 | M8: 2023-10-19 | N8: 15:46:00 | O8: 9871 | P8: 1718 | Q8: 5219 | R8: 684 | S8: -4652 | T8: 323.7 | U8: 1.8844825 | V8: 4.499032882 | W8: 323.7 | Y8: 상승 | Z8: 326.5 | AA8: 성공 | AB8: -0.5952318803
A9: 금 | B9: 2023-10-20 | C9: 15:35:00 | D9: 18708 | E9: 2366 | F9: 11741 | G9: 1732 | H9: -6967 | I9: 319.1 | J9: -0.263889643 | K9: 7.72796518 | M9: 2023-10-20 | N9: 15:46:00 | O9: 9208 | P9: 1203 | Q9: 6245 | R9: 949 | S9: -2963 | T9: 318.85 | U9: -1.073586669 | V9: 11.66535433 | W9: 318.85 | Y9: 상승 | Z9: 321 | AA9: 실패 | AB9: -0.5747093441
B10: 2023-10-23 | C10: 15:35:00 | D10: 14892 | E10: 2334 | F10: 14494 | G10: 1833 | H10: -398 | I10: 317.15 | J10: 1.52679314 | K10: 0.7944111776 | M10: 2023-10-23 | N10: 15:46:00 | O10: 8073 | P10: 1395 | Q10: 6831 | R10: 945 | S10: -1242 | T10: 317 | U10: 1.441474654 | V10: 2.76 | W10: 317 | Y10: 하락 | Z10: 317.15 | AA10: =IF(AND(Y9="상승",Z10>W9),"성공",IF(AND(Y9="하락",Z10<W9),"성공",IF(AND(Y9="상승",Z10=W9),"동일가",IF(AND(Y9="하락",Z10=W9),"동일가","실패")))) -> 실패 | AB10: =S10/H10-1 -> 2.120603015
B11: 2023-10-24 | C11: 15:35:00 | D11: 11514 | E11: 1530 | F11: 17453 | G11: 2719 | H11: 5939 | I11: 319.65 | J11: -1.106586187 | K11: 4.994953743 | M11: 2023-10-24 | N11: 15:46:00 | O11: 5906 | P11: 849 | Q11: 7700 | R11: 1211 | S11: 1794 | T11: 319.55 | U11: -0.598037814 | V11: 4.955801105 | W11: 319.55 | Y11: 하락 | Z11: 318.55 | AA11: 실패 | AB11: -0.6979289443
B12: 2023-10-25 | C12: 15:35:00 | D12: 18960 | E12: 2689 | F12: 10553 | G12: 1355 | H12: -8407 | I12: 317.75 | J12: 0.9912027057 | K12: 5.52532391 | M12: 2023-10-25 | N12: 15:46:00 | O12: 8726 | P12: 1370 | Q12: 4076 | R12: 566 | S12: -4650 | T12: 317.85 | U12: 0.8320703619 | V12: 5.78358209 | W12: 317.85 | Y12: 상승 | Z12: 320.3 | AA12: 실패 | AB12: -0.4468894968
B13: 2023-10-26 | C13: 15:35:00 | D13: 20611 | E13: 2970 | F13: 8651 | G13: 1141 | H13: -11960 | I13: 309.4 | J13: 0.5471770049 | K13: 6.249262537 | M13: 2023-10-26 | N13: 15:46:00 | O13: 8791 | P13: 1423 | Q13: 6158 | R13: 680 | S13: -2633 | T13: 309.15 | U13: 2.878088959 | V13: 3.543741588 | W13: 309.15 | Y13: =IF(H13>S13,"하락","상승") -> 상승 | Z13: 312.95 | AA13: 실패 | AB13: -0.7798494983
A14: 금 | B14: 2023-10-27 | C14: 15:35:00 | D14: 14273 | E14: 2133 | F14: 13278 | G14: 1990 | H14: -995 | I14: 309.5 | J14: -0.01915249006 | K14: 6.958041958 | M14: 2023-10-27 | N14: 15:46:00 | O14: 7000 | P14: 1081 | Q14: 6563 | R14: 956 | S14: -437 | T14: 309.2 | U14: 0.3895771001 | V14: 3.496 | W14: 309.2 | Y14: 상승 | Z14: 309.95 | AA14: 성공 | AB14: -0.5608040201
B15: 2023-10-30 | C15: 15:35:00 | D15: 10351 | E15: 1519 | F15: 18337 | G15: 2271 | H15: 7986 | I15: 310.3 | J15: 1.26006501 | K15: 10.61968085 | M15: 2023-10-30 | N15: 15:46:00 | O15: 3324 | P15: 627 | Q15: 7833 | R15: 941 | S15: 4509 | T15: 310.2 | U15: 3.022687866 | V15: 14.35987261 | W15: 310.2 | Y15: 하락 | Z15: 307.25 | AA15: 실패 | AB15: -0.4353869271
B16: 2023-10-31 | C16: 15:35:00 | D16: 19479 | E16: 2879 | F16: 10061 | G16: 1313 | H16: -9418 | I16: 306.75 | J16: 0.8967137877 | K16: 6.014048531 | M16: 2023-10-31 | N16: 15:46:00 | O16: 9313 | P16: 1622 | Q16: 4459 | R16: 643 | S16: -4854 | T16: 307.1 | U16: 1.19300424 | V16: 4.958120531 | W16: 307.1 | Y16: 상승 | Z16: 311.65 | AA16: =IF(AND(Y15="상승",Z16>W15),"성공",IF(AND(Y15="하락",Z16<W15),"성공",IF(AND(Y15="상승",Z16=W15),"동일가",IF(AND(Y15="하락",Z16=W15),"동일가","실패")))) -> 실패 | AB16: =S16/H16-1 -> -0.4846039499
B17: 2023-11-01 | C17: 15:35:00 | D17: 12505 | E17: 1840 | F17: 18703 | G17: 2301 | H17: 6198 | I17: 310.8 | J17: 1.332009476 | K17: 13.44468547 | M17: 2023-11-01 | N17: 15:46:00 | O17: 6095 | P17: 1011 | Q17: 7729 | R17: 1068 | S17: 1634 | T17: 311.05 | U17: 1.208206915 | V17: 28.66666667 | W17: 311.05 | Y17: 하락 | Z17: 308.4 | AA17: 성공 | AB17: -0.7363665699
B18: 2023-11-02 | C18: 15:35:00 | D18: 15256 | E18: 2159 | F18: 17094 | G18: 1861 | H18: 1838 | I18: 315.9 | J18: 2.119149834 | K18: -6.167785235 | M18: 2023-11-02 | N18: 15:46:00 | O18: 7632 | P18: 1221 | Q18: 7674 | R18: 962 | S18: 42 | T18: 316.15 | U18: 1.726516727 | V18: -0.1621621622 | W18: 316.15 | Y18: 하락 | Z18: 316.05 | AA18: 실패 | AB18: -0.9771490751
A19: 금 | B19: 2023-11-03 | C19: 15:35:00 | D19: 15120 | E19: 2050 | F19: 15477 | G19: 1950 | H19: 357 | I19: 319.5 | J19: 0.5613133208 | K19: -3.57 | M19: 2023-11-03 | N19: 15:45:00 | O19: 14160 | P19: 1654 | Q19: 13848 | R19: 1299 | S19: -312 | T19: 319.6 | U19: 2.099443996 | V19: 0.8788732394 | W19: 319.6 | Y19: =IF(H19>S19,"하락","상승") -> 하락 | Z19: 319.7 | AA19: 실패 | AB19: -1.87394958
B20: 2023-11-06 | C20: 15:35:00 | D20: 3920 | E20: 606 | F20: 24897 | G20: 3711 | H20: 20977 | I20: 334.4 | J20: 0.2403264579 | K20: 6.755877617 | M20: 2023-11-06 | N20: 15:45:00 | O20: 16699 | P20: 1125 | Q20: 25667 | R20: 2368 | S20: 8968 | T20: 335.3 | U20: -4.004450826 | V20: 7.214802896 | W20: 335.3 | Y20: 하락 | Z20: 324 | AA20: 실패 | AB20: -0.5724841493
B21: 2023-11-07 | C21: 15:35:00 | D21: 16844 | E21: 2310 | F21: 13014 | G21: 1871 | H21: -3830 | I21: 328.4 | J21: -0.3361361959 | K21: 8.724373576 | M21: 2023-11-07 | N21: 15:45:00 | O21: 18430 | P21: 1499 | Q21: 16567 | R21: 1414 | S21: -1863 | T21: 328.4 | U21: -0.5784558871 | V21: 21.91764706 | W21: 328.4 | Y21: 상승 | Z21: 334.9 | AA21: 성공 | AB21: -0.5135770235
B22: 2023-11-08 | C22: 15:35:00 | D22: 18810 | E22: 2785 | F22: 7789 | G22: 1052 | H22: -11021 | I22: 324.9 | J22: 0.6499528981 | K22: 6.35949221 | M22: 2023-11-08 | N22: 15:45:00 | O22: 16585 | P22: 2058 | Q22: 10002 | R22: 923 | S22: -6583 | T22: 325.1 | U22: 2.777608087 | V22: 5.8 | W22: 325.1 | Y22: 상승 | Z22: 331.1 | AA22: =IF(AND(Y21="상승",Z22>W21),"성공",IF(AND(Y21="하락",Z22<W21),"성공",IF(AND(Y21="상승",Z22=W21),"동일가",IF(AND(Y21="하락",Z22=W21),"동일가","실패")))) -> 성공 | AB22: =S22/H22-1 -> -0.4026857817
B23: 2023-11-09 | C23: 15:35:00 | D23: 13157 | E23: 1940 | F23: 8442 | G23: 726 | H23: -4715 | I23: 326.65 | J23: 4.846140411 | K23: 3.883855025 | M23: 2023-11-09 | N23: 15:45:00 | O23: 19892 | P23: 2460 | Q23: 11790 | R23: 1098 | S23: -8102 | T23: 326.7 | U23: 2.651526056 | V23: 5.948604993 | W23: =T23 -> 326.7 | Y23: 하락 | Z23: 325.95 | AA23: 성공 | AB23: 0.7183457052
A24: 금 | B24: 2023-11-10 | C24: 15:35:00 | D24: 14965 | E24: 2234 | F24: 15837 | G24: 2507 | H24: 872 | I24: 324.65 | J24: -0.3816345566 | K24: 3.194139194 | M24: 2023-11-10 | N24: 15:45:00 | O24: 12537 | P24: 1437 | Q24: 13881 | R24: 1574 | S24: 1344 | T24: 324.7 | U24: 0.09450676839 | V24: 9.810218978 | W24: 324.7 | Y24: 상승 | Z24: 324 | AA24: 성공 | AB24: 0.5412844037
B25: 2023-11-13 | C25: 15:35:00 | D25: 14877 | E25: 1935 | F25: 10824 | G25: 1241 | H25: -4053 | I25: 324.75 | J25: 1.033626295 | K25: 5.840057637 | M25: 2023-11-13 | N25: 15:45:00 | O25: 14131 | P25: 1907 | Q25: 10515 | R25: 1203 | S25: -3616 | T25: 325.1 | U25: 1.330580209 | V25: 5.136363636 | W25: 325.1 | Y25: =IF(H25>S25,"하락","상승") -> 상승 | Z25: 328.25 | AA25: 성공 | AB25: -0.1078213669
B26: 2023-11-14 | C26: 15:35:00 | D26: 13349 | E26: 1970 | F26: 15127 | G26: 2091 | H26: 1778 | I26: 327.65 | J26: 0.4581955055 | K26: 14.69421488 | M26: 2023-11-14 | N26: 15:45:00 | O26: 11995 | P26: 1573 | Q26: 13193 | R26: 1354 | S26: 1198 | T26: 327.8 | U26: 2.118166042 | V26: -5.470319635 | W26: 327.8 | Y26: 하락 | Z26: 326.6 | AA26: 성공 | AB26: -0.3262092238
B27: 2023-11-15 | C27: 15:35:00 | D27: 12553 | E27: 1770 | F27: 21897 | G27: 2890 | H27: 9344 | I27: 335.1 | J27: 0.4847262135 | K27: 8.342857143 | M27: 2023-11-15 | N27: 15:45:00 | O27: 13505 | P27: 1574 | Q27: 20304 | R27: 2003 | S27: 6799 | T27: 335.25 | U27: 1.556743982 | V27: 15.84848485 | W27: 335.25 | Y27: 하락 | Z27: 334.8 | AA27: 실패 | AB27: -0.2723672945
B28: 2023-11-16 | C28: 16:35:00 | D28: 15736 | E28: 1972 | F28: 15449 | G28: 1947 | H28: -287 | I28: 334.7 | J28: -0.04494458109 | K28: 11.48 | M28: 2023-11-16 | N28: 16:45:00 | O28: 14323 | P28: 1656 | Q28: 12603 | R28: 1365 | S28: -1720 | T28: 334.55 | U28: 0.5838124436 | V28: 5.910652921 | W28: 334.55 | Y28: 하락 | Z28: 334.35 | AA28: 성공 | AB28: 4.993031359
A29: 금 | B29: 2023-11-17 | C29: 15:35:00 | D29: 14539 | E29: 1874 | F29: 13556 | G29: 1595 | H29: -983 | I29: 333.05 | J29: 0.7407884832 | K29: 3.523297491 | M29: 2023-11-17 | N29: 15:45:00 | O29: 7777 | P29: 1096 | Q29: 5924 | R29: 838 | S29: -1853 | T29: 333.1 | U29: -0.02659050921 | V29: 7.182170543 | W29: 333.1 | Y29: 하락 | Z29: 334.2 | AA29: =IF(AND(Y28="상승",Z29>W28),"성공",IF(AND(Y28="하락",Z29<W28),"성공",IF(AND(Y28="상승",Z29=W28),"동일가",IF(AND(Y28="하락",Z29=W28),"동일가","실패")))) -> 성공 | AB29: =S29/H29-1 -> 0.8850457782
B30: 2023-11-20 | C30: 15:35:00 | D30: 11499 | E30: 1434 | F30: 19554 | G30: 2835 | H30: 8055 | I30: 335.55 | J30: -1.121473955 | K30: 5.749464668 | M30: 2023-11-20 | N30: 15:45:00 | O30: 4624 | P30: 708 | Q30: 8556 | R30: 1362 | S30: 3932 | T30: 335.55 | U30: -0.2491351203 | V30: 6.012232416 | W30: 335.55 | Y30: 하락 | Z30: 332.35 | AA30: 성공 | AB30: -0.5118559901
B31: 2023-11-21 | C31: 15:35:00 | D31: 13571 | E31: 1720 | F31: 13268 | G31: 1747 | H31: -303 | I31: 337.2 | J31: -0.2953824496 | K31: -11.22222222 | M31: 2023-11-21 | N31: 15:45:00 | O31: 6977 | P31: 1040 | Q31: 6827 | R31: 975 | S31: -150 | T31: 337.45 | U31: 0.2933974359 | V31: 2.307692308 | W31: 337.45 | Y31: =IF(H31>S31,"하락","상승") -> 상승 | Z31: 338 | AA31: 실패 | AB31: -0.504950495
B32: 2023-11-22 | C32: 15:35:00 | D32: 12155 | E32: 1603 | F32: 21455 | G32: 3128 | H32: 9300 | I32: 337.75 | J32: -0.7236421719 | K32: 6.098360656 | M32: 2023-11-22 | N32: 15:45:00 | O32: 9124 | P32: 1080 | Q32: 16184 | R32: 1840 | S32: 7060 | T32: 338 | U32: 0.3475040258 | V32: 9.289473684 | W32: 338 | Y32: 하락 | Z32: 335 | AA32: 실패 | AB32: -0.2408602151
B33: 2023-11-23 | C33: 15:35:00 | D33: 11017 | E33: 1962 | F33: 11446 | G33: 1862 | H33: 429 | I33: 337.6 | J33: 0.5319650152 | K33: -4.29 | M33: 2023-11-23 | N33: 15:45:00 | O33: 9842 | P33: 1464 | Q33: 11671 | R33: 1161 | S33: 1829 | T33: 337.95 | U33: 3.329863317 | V33: -6.03630363 | W33: 337.95 | Y33: 상승 | Z33: 337.45 | AA33: 성공 | AB33: 3.263403263
A34: 금 | B34: 2023-11-24 | C34: 15:35:00 | D34: 14724 | E34: 2624 | F34: 8163 | G34: 1053 | H34: -6561 | I34: 334.75 | J34: 2.140856264 | K34: 4.176320815 | M34: 2023-11-24 | N34: 15:45:00 | O34: 14916 | P34: 2014 | Q34: 8718 | R34: 815 | S34: -6198 | T34: 334.7 | U34: 3.290775614 | V34: 5.169307756 | W34: 334.7 | Y34: 상승 | Z34: 337.2 | AA34: 실패 | AB34: -0.05532693187
B35: 2023-11-27 | C35: 15:35:00 | D35: 16972 | E35: 2558 | F35: 14481 | G35: 1862 | H35: -2491 | I35: 334.2 | J35: 1.142250382 | K35: 3.579022989 | M35: 2023-11-27 | N35: 15:45:00 | O35: 11748 | P35: 1759 | Q35: 12065 | R35: 1236 | S35: 317 | T35: 334.2 | U35: 3.082532091 | V35: -0.6061185468 | W35: 334.2 | Y35: 상승 | Z35: 334.35 | AA35: 실패 | AB35: -1.127258129
B36: 2023-11-28 | C36: 15:35:00 | D36: 10701 | E36: 1284 | F36: 19672 | G36: 3042 | H36: 8971 | I36: 338.25 | J36: -1.86731399 | K36: 5.102957907 | M36: 2023-11-28 | N36: 15:45:00 | O36: 10306 | P36: 1177 | Q36: 16153 | R36: 1705 | S36: 5847 | T36: 338.4 | U36: 0.7177405651 | V36: 11.07386364 | W36: 338.4 | Y36: 하락 | Z36: 335.75 | AA36: =IF(AND(Y35="상승",Z36>W35),"성공",IF(AND(Y35="하락",Z36<W35),"성공",IF(AND(Y35="상승",Z36=W35),"동일가",IF(AND(Y35="하락",Z36=W35),"동일가","실패")))) -> 성공 | AB36: =S36/H36-1 -> -0.3482331959
B37: 2023-11-29 | C37: 15:35:00 | D37: 13518 | E37: 1890 | F37: 16056 | G37: 2344 | H37: 2538 | I37: 337.3 | J37: -0.3025516008 | K37: 5.59030837 | M37: 2023-11-29 | N37: 15:45:00 | O37: 9769 | P37: 1267 | Q37: 12661 | R37: 1346 | S37: 2892 | T37: 337.55 | U37: 1.696049917 | V37: 36.60759494 | W37: 337.55 | Y37: =IF(H37>S37,"하락","상승") -> 상승 | Z37: 338.35 | AA37: 성공 | AB37: 0.1394799054
B38: 2023-11-30 | C38: 15:35:00 | D38: 12252 | E38: 1347 | F38: 20299 | G38: 2994 | H38: 8047 | I38: 339.05 | J38: -2.315875255 | K38: 4.885853066 | M38: 2023-11-30 | N38: 15:45:00 | O38: 12711 | P38: 1064 | Q38: 15831 | R38: 1811 | S38: 3120 | T38: 339.15 | U38: -3.204849333 | V38: 4.176706827 | W38: 339.15 | Y38: =IF(H38>S38,"하락","상승") -> 하락 | Z38: 337.05 | AA38: 실패 | AB38: -0.6122778675
A39: 금 | B39: 2023-12-01 | C39: 15:35:00 | D39: 16548 | E39: 2482 | F39: 11783 | G39: 1535 | H39: -4765 | I39: 335.15 | J39: 1.009017631 | K39: 5.031678986 | M39: 2023-12-01 | N39: 15:45:00 | O39: 13881 | P39: 1676 | Q39: 10641 | R39: 1152 | S39: -3240 | T39: 335.5 | U39: 0.9547595963 | V39: 6.183206107 | W39: 335.5 | Y39: =IF(H39>S39,"하락","상승") -> 상승 | Z39: 337.75 | AA39: 성공 | AB39: -0.3200419727
B40: ='1. 매수매도 총잔량'!$A$3 -> 2023-12-01 | C40: ='1. 매수매도 총잔량'!$A$424 -> 15:35:00 | D40: ='1. 매수매도 총잔량'!$B$424 -> 16548 | E40: ='1. 매수매도 총잔량'!$C$424 -> 2482 | F40: ='1. 매수매도 총잔량'!$D$424 -> 11783 | G40: ='1. 매수매도 총잔량'!$E$424 -> 1535 | H40: ='1. 매수매도 총잔량'!$F$424 -> -4765 | I40: ='1. 매수매도 총잔량'!$G$425 -> 335.15 | J40: ='1. 매수매도 총잔량'!$H$424 -> 1.009017631 | K40: ='1. 매수매도 총잔량'!$I$424 -> 5.031678986 | M40: ='1. 매수매도 총잔량'!$A$3 -> 2023-12-01 | N40: ='1. 매수매도 총잔량'!$A$434 -> 15:45:00 | O40: ='1. 매수매도 총잔량'!$B$434 -> 13881 | P40: ='1. 매수매도 총잔량'!$C$434 -> 1676 | Q40: ='1. 매수매도 총잔량'!$D$434 -> 10641 | R40: ='1. 매수매도 총잔량'!$E$434 -> 1152 | S40: ='1. 매수매도 총잔량'!$F$434 -> -3240 | T40: ='1. 매수매도 총잔량'!$G$435 -> 335.5 | U40: ='1. 매수매도 총잔량'!$H$434 -> 0.9547595963 | V40: ='1. 매수매도 총잔량'!$I$434 -> 6.183206107 | W40: =T40 -> 335.5 | Y40: =IF(H40>S40,"하락","상승") -> 상승 | Z40: =[1]!'101TC000.029' -> 337.75 | AA40: 성공 | AB40: -0.3200419727
B41: ='1. 매수매도 총잔량'!$A$3 -> 2023-12-01 | C41: ='1. 매수매도 총잔량'!$A$424 -> 15:35:00 | D41: ='1. 매수매도 총잔량'!$B$424 -> 16548 | E41: ='1. 매수매도 총잔량'!$C$424 -> 2482 | F41: ='1. 매수매도 총잔량'!$D$424 -> 11783 | G41: ='1. 매수매도 총잔량'!$E$424 -> 1535 | H41: ='1. 매수매도 총잔량'!$F$424 -> -4765 | I41: ='1. 매수매도 총잔량'!$G$425 -> 335.15 | J41: ='1. 매수매도 총잔량'!$H$424 -> 1.009017631 | K41: ='1. 매수매도 총잔량'!$I$424 -> 5.031678986 | M41: ='1. 매수매도 총잔량'!$A$3 -> 2023-12-01 | N41: ='1. 매수매도 총잔량'!$A$434 -> 15:45:00 | O41: ='1. 매수매도 총잔량'!$B$434 -> 13881 | P41: ='1. 매수매도 총잔량'!$C$434 -> 1676 | Q41: ='1. 매수매도 총잔량'!$D$434 -> 10641 | R41: ='1. 매수매도 총잔량'!$E$434 -> 1152 | S41: ='1. 매수매도 총잔량'!$F$434 -> -3240 | T41: ='1. 매수매도 총잔량'!$G$435 -> 335.5 | U41: ='1. 매수매도 총잔량'!$H$434 -> 0.9547595963 | V41: ='1. 매수매도 총잔량'!$I$434 -> 6.183206107 | W41: =T41 -> 335.5 | Y41: =IF(H41>S41,"하락","상승") -> 상승 | Z41: =[1]!'101TC000.029' -> 337.75 | AA41: 성공 | AB41: -0.3200419727
